[Event "Reykjavik Open 2025"]
[Site "Reykjavik"]
[Date "2025.04.12"]
[Round "5.1"]
[White "Muradli, Mahammad"]
[Black "Gupta, Abhijeet"]
[Result "1-0"]
[Annotator "TA"]
[ECO "D90"]
[WhiteElo "2588"]
[BlackElo "2576"]
[PlyCount "131"]
[EventDate "2025.04.09"]
[EventType "swiss"]
[EventCountry "ISL"]
[SourceTitle "playchess.com"]
[Source "ChessBase"]
[SourceQuality "1"]
[TimeControl "40/5400+30:1800+30"]

{[%evp 9,131,10,5,1,6,2,9,12,22,22,23,23,18,4,64,25,29,25,43,-4,-5,-8,40,8,4,9,8,21,105,86,131,27,101,109,101,103,98,103,106,105,107,101,106,108,117,94,118,118,118,121,120,121,121,124,125,125,125,125,125,125,125,118,118,118,118,118,118,118,118,118,118,118,118,118,118,118,118,118,118,118,118,118,118,118,118,118,118,0,118,118,118,118,118,118,118,118,118,0,118,118,118,118,118,0,118,0,118,118,587,537,449,102,102,102,102,102,29971,29972,29969,29975,29969,29975,29973,29974]} 1. d4 {[%emt 0:05:33]} Nf6 {[%emt 0:00:12]} 2. c4 {[%emt 0:00:11]} g6 {[%emt 0:00:09]} 3. Nc3 {[%emt 0:00:07]} d5 {[%emt 0:00:04]} 4. Nf3 {[%emt 0:00:14]} Bg7 {[%emt 0:00:11]} 5. h4 {[%emt 0:00:13]} c6 {[%emt 0:02:15]} 6. cxd5 {[%emt 0:02:34] D90: Grünfeld: 4 Nf3 Bg7 sidelines.} cxd5 {[%emt 0:00:04]} 7. Bf4 {[%emt 0:00:15]} Nc6 {[%emt 0:00:12]} 8. e3 {[%emt 0:00:07] The position is equal.} O-O {[%emt 0:01:22]} 9. Qb3 {[%emt 0:00:13]} a6 {[%emt 0:05:37]} 10. Rc1 {[%emt 0:03:52]} Re8 {[%emt 0:04:09]} 11. Ne5 $5 $146 {[%emt 0:05:09][%mdl 8] An interesting novelty.} (11. Be2 Bg4 12. Qxb7 Bxf3 13. Bxf3 e5 14. dxe5 Nxe5 15. Bxe5 Rxe5 16. O-O Re7 17. Qb3 {½-½ Giri,A (2764)-Nepomniachtchi,I (2784) Airthings Masters Prelim rapid 2020 (1)}) 11... Na5 {[%emt 0:07:03]} ({Black should play} 11... Ng4 $11) 12. Qa3 {[%emt 0:03:34]} Bf5 {[%emt 0:06:43]} 13. Be2 {[%emt 0:10:40]} Rc8 {[%emt 0:03:27]} 14. Qb4 {[%emt 0:02:16]} (14. O-O $14) 14... Bf8 $11 {[%emt 0:06:39]} 15. O-O {[%emt 0:00:49]} Nd7 {[%emt 0:09:41]} (15... b5 $11 {should be considered.} 16. Qa3 Qb6) 16. Rfd1 {[%emt 0:12:52]} (16. Nxd5 Nxe5 17. Bxe5 Qxd5 $17) 16... f6 $1 {[%emt 0:10:27] The position is symmetric and equal} 17. Nxd7 {[%emt 0:04:28]} Bxd7 {[%emt 0:02:26]} 18. Nxd5 {[%emt 0:03:14]} Rxc1 {[%emt 0:19:12]} (18... e5 $11 19. Rc5 (19. Rxc8 Bxc8 20. Nxf6+ Qxf6 $15) 19... exf4 (19... Bxc5 20. dxc5 exf4 21. Nb6 $11) 20. Qxa5 Bxc5 21. Qxd8 Rexd8 22. dxc5 Kf7) 19. Rxc1 $16 {[%emt 0:00:08]} Bc6 {[%emt 0:00:10] Black is weak on the dark squares} 20. Rc5 {[%emt 0:18:52] White is much more active.} ({White should play} 20. Nc7 $1 $16 {[%cal Rc7e8]} e5 21. Qxa5 exf4 22. d5 (22. Nxe8 $2 Qxa5 23. Bc4+ Kh8 $19)) 20... Bxd5 {[%emt 0:01:38]} (20... e5 $1 $11 {keeps the balance.} 21. Qxa5 exf4 22. Qxd8 Rxd8 23. Rxc6 (23. Nxf6+ Kg7 $11) 23... bxc6 24. Nxf4 a5) 21. Bc7 $1 {[%emt 0:03:17]} (21. Rxa5 e5 22. Qc3 exd4 $11 (22... exf4 $2 23. Rxd5 Qc8 24. Bc4 $18)) (21. Qxa5 b6 22. Rxd5 bxa5 $11) 21... Qd7 {[%emt 0:05:07]} 22. Qxa5 {[%emt 0:00:48]} e6 {[%emt 0:00:17]} 23. Rc3 {[%emt 0:00:14]} Rc8 {[%emt 0:02:22]} 24. a3 {[%emt 0:00:29]} Be7 {[%emt 0:01:59]} 25. Bg3 {[%emt 0:02:28]} f5 {[%emt 0:00:16][%cal Bf6f5,Bf5g4,Bg4f3][%mdl 32]} 26. h5 {[%emt 0:04:05]} g5 {[%emt 0:01:20]} 27. Be5 {[%emt 0:00:05]} (27. f3 {simplifies} f4 28. exf4 Bd6 29. Rxc8+ Qxc8 30. Qd2) 27... Kf7 {[%emt 0:00:39]} 28. g4 {[%emt 0:01:33]} Bd8 {[%emt 0:02:57]} 29. Qb4 {[%emt 0:01:39]} Be7 {[%emt 0:00:11]} 30. Qb6 {[%emt 0:01:16]} fxg4 {[%emt 0:03:20]} 31. Rc7 {[%emt 0:13:19] Chess con chili.} (31. Bxg4 Rxc3 32. bxc3 Qc6) 31... Rxc7 {[%emt 0:00:49]} 32. Qxc7 {[%emt 0:00:02][%csl Oe5] Strong Square White (e5)} (32. Bxc7 $6 Qa4 33. Bd8 (33. Bxg4 $2 Qc2 $17) 33... Bxd8 34. Qxd8 Qc2 $11) 32... Qxc7 {[%emt 0:02:24]} 33. Bxc7 {[%emt 0:00:02]} Bf3 {[%emt 0:00:28]} 34. Bxf3 {[%emt 0:00:46]} gxf3 {[%emt 0:00:03][%mdl 4096] Endgame KB-KB} 35. Kh2 $1 {[%emt 0:00:07]} Kf6 {[%emt 0:01:06]} 36. e4 {[%emt 0:00:05]} g4 {[%emt 0:00:23]} 37. Bf4 {[%emt 0:00:57]} e5 {[%emt 0:00:07]} 38. dxe5+ {[%emt 0:02:12]} (38. Bxe5+ Kg5) 38... Ke6 {[%emt 0:00:05]} 39. Kg3 {[%emt 0:00:12] Wards off Bh4+} Bc5 {[%emt 0:00:11]} 40. a4 {[%emt 0:00:56]} b5 {[%emt 0:02:47]} 41. b3 {[%emt 0:02:22]} (41. Kxg4 $6 bxa4 42. Kg3 (42. Kxf3 Bd4 $11) 42... Bd4 $14) 41... Bd4 {[%emt 0:01:50]} (41... bxa4 42. bxa4 (42. Kxg4 $2 axb3 43. Bc1 Bxf2 $19) 42... Bd4 43. Kxg4 Bxf2 44. Kxf3 $18) 42. Kxg4 {[%emt 0:05:25]} Bxf2 {[%emt 0:00:06]} 43. Kxf3 {[%emt 0:00:05]} Bc5 {[%emt 0:00:15]} 44. Ke2 {[%emt 0:09:48]} Bd4 {[%emt 0:02:11]} 45. Kd3 {[%emt 0:00:35]} Bb2 {[%emt 0:00:44]} 46. Bg3 {[%emt 0:01:54]} Ba1 {[%emt 0:00:49]} 47. Bh2 {[%emt 0:08:56]} Bb2 {[%emt 0:01:32]} 48. Bg3 {[%emt 0:00:02]} Ba1 $1 {[%emt 0:00:08]} 49. Ke3 {[%emt 0:00:05]} Bc3 {[%emt 0:01:12]} 50. Kf3 {[%emt 0:00:07]} Bb4 {[%emt 0:01:09]} 51. Kg4 {[%emt 0:00:08]} Be7 {[%emt 0:00:18]} 52. Bh2 {[%emt 0:03:39]} Bd8 {[%emt 0:00:24]} 53. Bg3 {[%emt 0:00:18]} Be7 {[%emt 0:00:16]} 54. Kf4 {[%emt 0:00:03]} Bd8 {[%emt 0:03:51]} 55. Bf2 {[%emt 0:01:47]} Ba5 {[%emt 0:04:33]} 56. Bg3 {[%emt 0:00:40]} Bd8 $1 {[%emt 0:00:36]} 57. Bf2 {[%emt 0:00:01]} Ba5 $1 {[%emt 0:00:05]} 58. Be3 {[%emt 0:00:19]} Bc3 $2 {[%emt 0:05:09][%mdl 8192]} (58... Bd8 $16 {is a better chance.} 59. Bd4 Ba5) 59. axb5 $18 {[%emt 0:03:08]} axb5 {[%emt 0:00:03]} 60. Kg5 $2 {[%emt 0:00:42]} (60. Bc1 $1 $18 {Strongly threatening Kg5.} b4 61. Ke3) 60... Kxe5 $16 {[%emt 0:00:06]} (60... Bxe5 $2 {loses.} 61. Kh6 $18) 61. Kh6 $1 {[%emt 0:00:06]} Kxe4 {[%emt 0:00:04]} 62. Bc5 {[%emt 0:00:30]} b4 $2 {[%emt 0:00:42][%mdl 8192]} (62... Kd5 $16 63. Bf8 Ke6) 63. Kxh7 {[%emt 0:00:07] White mates.} Kd3 {[%emt 0:00:03]} 64. Kg6 {[%emt 0:00:51]} Kc2 {[%emt 0:00:03] [#]} 65. h6 $1 {[%emt 0:00:15]} Kxb3 {[%emt 0:00:53] [#]} 66. Bf8 $1 {[%emt 0:00:35] Weighted Error Value: White=0.22 (precise) /Black=0.22 (precise)   Loses game:     	---       	Black=2      Missed win:     	White=1     	---        Mistake:       	White=2     	Black=4      Inaccurate:     	White=2     	Black=1      OK:         	White=24    	Black=20     Best:        	White=4     	Black=11     Strong:       	White=3     	Black=4} 1-0

[Event "Reykjavik Open 2025"]
[Site "Reykjavik"]
[Date "2025.04.12"]
[Round "5.2"]
[White "Jacobson, Brandon"]
[Black "Maghsoodloo, Parham"]
[Result "0-1"]
[Annotator "TA"]
[ECO "B92"]
[WhiteElo "2570"]
[BlackElo "2684"]
[PlyCount "80"]
[EventDate "2025.04.09"]
[EventType "swiss"]
[EventCountry "ISL"]
[SourceTitle "playchess.com"]
[Source "ChessBase"]
[SourceQuality "1"]
[TimeControl "40/5400+30:1800+30"]

{[%evp 16,80,18,-2,19,0,14,13,20,0,0,0,26,0,0,-17,-25,-10,-14,-8,0,0,0,0,0,0,0,0,9,-59,-27,-48,-23,-123,-129,-158,-158,-146,-161,-171,-167,-188,-160,-243,-247,-259,-271,-263,-238,-253,-247,-408,-410,-546,-400,-405,-388,-360,0,-305,0,-363,-204,-194,-218,-200,-196]} 1. e4 {[%emt 0:03:38]} c5 {[%emt 0:00:39]} 2. Nf3 {[%emt 0:00:12]} d6 {[%emt 0:01:22]} 3. d4 {[%emt 0:00:52]} cxd4 {[%emt 0:00:09]} 4. Nxd4 {[%emt 0:00:05]} Nf6 {[%emt 0:00:09]} 5. Nc3 {[%emt 0:00:05]} a6 {[%emt 0:00:46]} 6. Be2 {[%emt 0:01:12]} e5 {[%emt 0:02:08]} 7. Nb3 {[%emt 0:00:21]} Be7 {[%emt 0:01:45]} 8. Be3 {[%emt 0:00:12]} Be6 {[%emt 0:03:11]} 9. f4 {[%emt 0:01:11] 9.Nd5 is the modern continuation.} b5 $5 {[%emt 0:11:28][%mdl 4] Leaves trodden paths. B92: Sicilian Najdorf: 6 Be2.} 10. f5 {[%emt 0:06:17]} Bd7 {[%emt 0:04:57]} 11. a3 {[%emt 0:30:01]} Bc6 {[%emt 0:05:04] The position is equal.} 12. Bf3 {[%emt 0:00:11]} a5 {[%emt 0:25:57]} 13. Qd3 {[%emt 0:11:23]} Qd7 {[%emt 0:07:02]} 14. O-O {[%emt 0:05:27]} O-O {[%emt 0:02:56]} 15. Rfd1 $146 {[%emt 0:09:17][%cal Oa3a4]} (15. Nd5 Bxd5 16. exd5 Rc8 17. Nd2 Na6 18. c3 Nc5 19. Bxc5 Rxc5 20. Kh1 Rcc8 21. Ne4 {0-1 Volovici,D (2378)-Marrone,V (2247) W-ch38 prel06 email 2014}) 15... Qb7 {[%emt 0:04:21]} 16. g4 {[%emt 0:01:21]} h6 {[%emt 0:01:32]} 17. h4 {[%emt 0:00:34]} Nh7 {[%emt 0:01:19][%cal Oa5a4]} 18. Bf2 $1 {[%emt 0:01:17]} Nd7 {[%emt 0:02:01]} 19. Nd5 {[%emt 0:00:45] Wards off Nhf6} Bd8 {[%emt 0:05:37]} 20. Nd2 {[%emt 0:07:34]} Nc5 {[%emt 0:03:13]} 21. Qe2 {[%emt 0:01:05]} Rc8 {[%emt 0:01:11]} 22. b3 {[%emt 0:05:29]} (22. Nb3 $11) 22... Bxd5 $15 {[%emt 0:04:47]} 23. exd5 {[%emt 0:00:02]} e4 $1 {[%emt 0:00:31]} 24. Bg2 {[%emt 0:04:37] [#]} (24. Bxe4 Bf6 25. Bg2 Rfe8 $17) (24. Nxe4 $11 Nxe4 25. Qxe4) 24... Re8 $1 $17 {[%emt 0:01:33]} (24... Qxd5 $2 25. Nc4 (25. Nxe4 Qe5 $11) (25. Bxe4 Nxe4 26. Nxe4 Qe5 $15) 25... Qc6 26. Nxd6 $18 (26. Rxd6 Qc7 $11)) (24... Bf6 25. b4 Na4 (25... axb4 26. axb4 Na4 27. Nxe4 $17) 26. Nxe4 Bxa1 27. Nxd6) 25. Bxc5 {[%emt 0:06:01]} (25. Nxe4 $2 Nxe4 26. Rd4 Nef6 $19) 25... Rxc5 {[%emt 0:00:07]} 26. Nxe4 {[%emt 0:00:03]} Rc8 {[%emt 0:06:06]} (26... Bxh4 $2 27. Nxc5 Qb8 28. Ne4 $18) (26... Rxd5 $2 27. Rxd5 Qxd5 (27... Bb6+ $2 28. Kf1 $18) 28. Nf6+ Nxf6 29. Qxe8+ Nxe8 30. Bxd5 $18) 27. Kh1 {[%emt 0:03:04]} Bxh4 {[%emt 0:02:58]} 28. Rd3 {[%emt 0:01:38]} Qe7 {[%emt 0:00:50]} 29. Re3 {[%emt 0:00:24] [#]} (29. Rad1 $17 {keeps fighting.}) 29... Bg5 $1 $19 {[%emt 0:00:38]} 30. Rh3 {[%emt 0:00:40]} ({Don't play} 30. Nf6+ Bxf6 31. Rxe7 Rxe7 $19) 30... Nf6 {[%emt 0:00:19][%cal Rf6e4]} 31. Re1 {[%emt 0:00:11]} Nxd5 {[%emt 0:00:46] ...Nf4 is the strong threat.} 32. Qxb5 {[%emt 0:00:42]} Nc7 {[%emt 0:00:28]} 33. Qc6 {[%emt 0:00:36]} (33. Qxa5 d5 34. Rc3) 33... d5 {[%emt 0:00:12]} 34. Rc3 {[%emt 0:00:27]} Qf8 {[%emt 0:00:56]} 35. Qb7 {[%emt 0:00:33]} Bf4 {[%emt 0:00:29]} 36. Rf3 {[%emt 0:00:22]} Bg5 {[%emt 0:00:28]} (36... Rxe4 37. Rxe4 dxe4 38. Rxf4 $15) (36... dxe4 37. Rxf4 e3 38. Qf3 $17) 37. Rc3 $1 {[%emt 0:00:09]} Bf4 {[%emt 0:00:33]} 38. Rf3 $1 {[%emt 0:00:06]} Bd6 {[%emt 0:00:20]} ({Less strong is} 38... Rxe4 39. Rxe4 Rb8 40. Qa7 $15 (40. Qc6 dxe4 41. Rxf4 e3 $16)) (38... dxe4 39. Rxf4 e3 40. Rf3 $15) (38... Bd2 $142 39. Nxd2 Rxe1+ 40. Rf1 Rxf1+ 41. Bxf1 Qd8) 39. Nxd6 {[%emt 0:00:44]} Rxe1+ {[%emt 0:00:05]} 40. Bf1 {[%emt 0:00:28]} Rd8 {[%emt 0:00:10] Weighted Error Value: White=0.28 (precise) /Black=0.43  Mistake:       	White=4     	Black=1      Inaccurate:     	White=2     	Black=1      OK:         	White=7     	Black=15     Best:        	White=2     	Black=3      Strong:       	White=3     	Black=3} 0-1

[Event "Reykjavik Open 2025"]
[Site "Reykjavik"]
[Date "2025.04.12"]
[Round "5.3"]
[White "Royal, Shreyas"]
[Black "Ivic, Velimir"]
[Result "1/2-1/2"]
[Annotator "TA"]
[ECO "B07"]
[WhiteElo "2465"]
[BlackElo "2623"]
[PlyCount "142"]
[EventDate "2025.04.09"]
[EventType "swiss"]
[EventCountry "ISL"]
[SourceTitle "playchess.com"]
[Source "ChessBase"]
[SourceQuality "1"]
[TimeControl "40/5400+30:1800+30"]

{[%evp 14,142,12,20,13,17,31,26,89,56,62,69,79,46,94,67,72,-57,-56,-71,-56,-114,-101,-186,-193,-195,-175,-155,-85,-91,-70,-162,-18,-8,0,0,0,0,25,0,0,-212,-199,-203,-199,-207,-199,-193,-202,-195,-147,-108,0,-263,-258,-289,-280,-267,-275,-277,-190,-180,-168,-184,-182,-167,-107,-102,0,0,0,-10,0,0,0,0,0,0,0,0,0,0,0,0,0,-67,0,0,0,0,0,0,0,-8,0,0,0,-14,-39,-25,-45,-74,-64,-129,-120,-192,-209,-184,-251,-287,0,0,0,0,0,0,0,0,0,0,0,0,0,0,0,0,0,0,0,0,0]} 1. d4 {[%emt 0:00:30]} d6 {[%emt 0:00:25]} 2. e4 {[%emt 0:00:00]} Nf6 {[%emt 0:00:15]} 3. Nc3 {[%emt 0:00:05]} g6 {[%emt 0:00:27]} 4. Be3 {[%emt 0:02:09]} Bg7 {[%emt 0:01:56]} 5. Qd2 {[%emt 0:02:09]} c6 {[%emt 0:01:05]} 6. f3 {[%emt 0:02:42]} b5 {[%emt 0:03:44]} 7. h4 {[%emt 0:04:26]} h5 {[%emt 0:13:54]} 8. Nh3 {[%emt 0:00:58]} Nbd7 {[%emt 0:06:03] B07: Pirc Defence: Miscellaneous Systems.} 9. Ng5 {[%emt 0:04:32][%cal Oe4e5] and e5! would now be decisive} Nb6 {[%emt 0:01:30]} 10. Bd3 {[%emt 0:05:03]} e5 $146 {[%emt 0:07:02]} (10... Nc4 $11 {keeps the balance.} 11. Bxc4 bxc4) (10... Qc7 11. O-O O-O 12. a4 b4 13. Nd1 a5 14. c4 bxc3 15. bxc3 c5 16. dxc5 dxc5 {0-1 Loiacono,L (2303)-Filgueira,H (2283) Titled Tuesday intern op 21st Mar Early blitz 2023 (7)}) 11. O-O-O {[%emt 0:08:50]} exd4 {[%emt 0:04:40]} 12. Bxd4 {[%emt 0:00:11]} b4 {[%emt 0:00:35]} 13. Ne2 {[%emt 0:00:45] A sharp opening} O-O {[%emt 0:00:48]} 14. b3 {[%emt 0:17:32]} (14. Qxb4 c5 15. Qa3 cxd4 16. Nxd4 Ne8 $19) 14... a5 {[%emt 0:06:26]} 15. Bb2 {[%emt 0:09:16]} (15. g4 $1 $16) 15... a4 $15 {[%emt 0:03:02]} 16. Qxb4 {[%emt 0:00:33]} axb3 $1 {[%emt 0:01:47] Black sacrificed a pawn} 17. axb3 {[%emt 0:04:02]} (17. Qxb3 $15 Na4 18. Bd4) 17... Ra2 $1 $17 {[%emt 0:02:04][%cal Of6d5]} 18. Qe1 {[%emt 0:00:56] [#]} (18. e5 $17 Nfd5 19. Qd2) 18... Rxb2 $1 $19 {[%emt 0:03:50][%mdl 512]} 19. Kxb2 {[%emt 0:01:31]} Nxe4+ {[%emt 0:00:08]} 20. c3 {[%emt 0:00:43]} Nxg5 {[%emt 0:02:00]} (20... Nc5 $142 21. Bc2 Re8) 21. hxg5 $17 {[%emt 0:00:01]} Qxg5 {[%emt 0:00:42][%cal Oc8d7]} 22. Qf2 {[%emt 0:04:47] [#]} (22. Qh4 $15 Qa5 (22... Qxg2 23. Rdf1 $11) 23. b4) 22... c5 {[%emt 0:04:00]} (22... Nd5 $1 $19 23. Be4 Be6) 23. Qh4 $1 $132 {[%emt 0:02:39][%mdl 2048] White is not holding back} Qe5 {[%emt 0:08:15]} 24. Qe4 {[%emt 0:00:13]} Qf6 {[%emt 0:06:00]} 25. Qc6 {[%emt 0:01:05]} d5 {[%emt 0:06:50]} 26. Qxc5 {[%emt 0:01:33] Active counter play!} (26. Qxf6 {simplifies} Bxf6 27. Ra1 Re8 28. Rhe1) 26... Bd7 {[%emt 0:00:46]} 27. Nd4 $2 {[%emt 0:02:35]} (27. Qb4 $11) 27... Rc8 $19 {[%emt 0:00:38][%mdl 1024] Black has strong compensation.} 28. Qa5 {[%emt 0:01:29]} Ra8 {[%emt 0:00:08]} 29. Qc5 {[%emt 0:00:51] [#]} Bf8 $1 {[%emt 0:05:42]} 30. Qc7 {[%emt 0:00:01]} Bd6 {[%emt 0:02:12]} 31. Qb7 {[%emt 0:00:04]} Rb8 {[%emt 0:00:10]} (31... Bc5 $19 32. Ra1 Rc8) 32. Qa7 $17 {[%emt 0:01:19]} Ra8 $2 {[%emt 0:01:18]} (32... Be5 $17 {[%cal Ob8a8]} 33. f4 Ra8 (33... Qxf4 34. Rhf1 $17) 34. Qxa8+ Nxa8 35. fxe5 Qf2+ (35... Qxe5 36. Be2 $15) 36. Bc2 Nc7 (36... Qxg2 37. Rhg1 $16)) 33. Qb7 $19 {[%emt 0:00:02][%cal Od3b5]} Be5 {[%emt 0:01:18] A strong pair of Bishops.} 34. Ra1 {[%emt 0:03:08]} Rb8 {[%emt 0:01:47]} 35. Qa7 {[%emt 0:00:24]} Rc8 {[%emt 0:02:27]} 36. Ra6 {[%emt 0:00:05]} Bxd4 {[%emt 0:01:14]} 37. cxd4 {[%emt 0:00:01]} Qxd4+ {[%emt 0:00:12] Black attacks} 38. Ka2 {[%emt 0:02:20]} Qxd3 {[%emt 0:00:52]} 39. Qxb6 {[%emt 0:01:24]} Qd2+ {[%emt 0:01:25]} (39... Qe2+ $19 40. Ka3 d4 (40... Qxg2 $2 41. Re1 $19)) 40. Ka3 $17 {[%emt 0:01:21][%cal Og2g4]} Rc2 {[%emt 0:01:57]} (40... d4 $17 {[%cal Od7e6]} 41. g4 Be6 (41... hxg4 $2 42. Qf6 $18)) 41. Ra1 {[%emt 0:30:01]} Rc8 {[%emt 0:08:08][%cal Od5d4] Prevents Qd8+.} 42. Qb7 {[%emt 0:00:00]} Be6 {[%emt 0:07:42][%cal Og8g7]} (42... Qd4 {with more complications.} 43. Rb1 Rc2 44. Qb6 Qc3) 43. Ra8 {[%emt 0:00:00]} (43. Rxe6 $2 Qa5+ 44. Kb2 Qc3+ 45. Ka2 fxe6 $19) 43... Qc3 {[%emt 0:00:28]} (43... Rxa8+ 44. Qxa8+ Kh7 45. Ra2 Qc1+ 46. Kb4 $17) 44. Rb1 {[%emt 0:00:00]} (44. Rxc8+ $2 Bxc8 45. Qxd5 Qxa1+ $19) 44... Qc5+ {[%emt 0:00:59]} 45. Ka2 {[%emt 0:00:00]} d4 {[%emt 0:00:53]} 46. Rxc8+ {[%emt 0:00:00]} Bxc8 $11 {[%emt 0:00:02][%mdl 4096] Endgame KQR-KQB} 47. Qa8 {[%emt 0:00:00] Prevents Qa5+.} d3 {[%emt 0:04:13]} 48. Qa3 {[%emt 0:00:00] Repels d2} Qg5 {[%emt 0:01:54]} (48... Qxa3+ $2 49. Kxa3 g5 50. Rd1 $18) 49. Qd6 {[%emt 0:00:00]} (49. Qb2 $11) 49... Qd2+ {[%emt 0:01:47]} (49... Qxg2+ $15 50. Ka3 (50. Rb2 $2 Qg5 $19) 50... Qc2 (50... Qxf3 $2 51. Qd8+ Kg7 52. Qxc8 $18)) 50. Ka3 {[%emt 0:00:00]} Qa5+ {[%emt 0:00:13]} 51. Kb2 {[%emt 0:00:00][%cal Ob1d1]} Qd2+ {[%emt 0:00:05]} 52. Ka3 {[%emt 0:00:00]} Be6 {[%emt 0:01:01]} 53. Qd4 {[%emt 0:00:05]} Qa5+ {[%emt 0:01:21]} 54. Kb2 {[%emt 0:00:13][%cal Ob1d1]} Qd2+ {[%emt 0:00:05]} 55. Ka3 {[%emt 0:00:01]} Qxg2 {[%emt 0:02:14]} 56. Qxd3 {[%emt 0:00:13]} Bf5 {[%emt 0:00:23]} 57. Qd8+ {[%emt 0:00:05]} Kh7 {[%emt 0:00:52]} 58. Re1 {[%emt 0:08:12]} ({White should try} 58. Qc7 $15) 58... Qxf3 $17 {[%emt 0:00:09]} 59. Re8 {[%emt 0:01:37]} (59. Qe7 $17 {might work better.} Qa8+ 60. Kb4) 59... Qc3 $19 {[%emt 0:00:44]} 60. Qd6 {[%emt 0:00:06]} Be6 {[%emt 0:02:18][%csl Ge6][%cal Rc3b3]} 61. Rb8 {[%emt 0:00:01]} h4 $2 {[%emt 0:01:07]} ({Better is} 61... g5 $19 {and ...h4 would now be decisive} 62. Qd8 Qg7) 62. Qd8 $1 $11 {[%emt 0:00:40] The position is equal.} Qc5+ {[%emt 0:02:59]} 63. Ka4 $1 {[%emt 0:00:13][%csl Gb8][%cal Rd8h8]} g5 {[%emt 0:01:39]} 64. Rb5 $1 {[%emt 0:00:38] Some like it hot} Qa7+ {[%emt 0:01:03]} 65. Kb4 {[%emt 0:00:11]} Qe3 {[%emt 0:00:32]} 66. Qxg5 {[%emt 0:01:12]} Qxg5 {[%emt 0:00:28]} 67. Rxg5 {[%emt 0:00:01] KR-KB} Kh6 {[%emt 0:00:23] Repels Rh5+} 68. Rg8 {[%emt 0:00:21]} h3 {[%emt 0:00:40]} 69. Kc3 {[%emt 0:00:11]} Kh5 {[%emt 0:00:27]} 70. Kd4 {[%emt 0:02:33]} Bxb3 {[%emt 0:00:14]} 71. Ke3 {[%emt 0:00:13]} Be6 {[%emt 0:00:33] Weighted Error Value: White=0.21 (precise) /Black=0.19 (very precise)   Loses game:     	White=1     	---        Missed win:     	---       	Black=1      Mistake:       	White=7     	Black=8      Inaccurate:     	White=2     	Black=1      OK:         	White=22    	Black=19     Best:        	White=8     	Black=6      Strong:       	White=4     	Black=3      Brilliant:      	---       	Black=1} 1/2-1/2

[Event "Reykjavik Open 2025"]
[Site "Reykjavik"]
[Date "2025.04.12"]
[Round "5.4"]
[White "Lu, Shanglei"]
[Black "Gorshtein, Ido"]
[Result "1/2-1/2"]
[Annotator "ChessBase"]
[ECO "B13"]
[WhiteElo "2618"]
[BlackElo "2557"]
[PlyCount "82"]
[EventDate "2025.04.09"]
[EventType "swiss"]
[EventCountry "ISL"]
[SourceTitle "playchess.com"]
[Source "ChessBase"]
[SourceQuality "1"]
[TimeControl "40/5400+30:1800+30"]

1. e4 {[%emt 0:00:04]} c6 {[%emt 0:00:04]} 2. d4 {[%emt 0:00:38]} d5 {[%emt 0:00:07]} 3. exd5 {[%emt 0:00:04]} cxd5 {[%emt 0:00:06]} 4. Bd3 {[%emt 0:00:04]} Nf6 {[%emt 0:01:17]} 5. c3 {[%emt 0:01:02]} Bg4 {[%emt 0:00:06]} 6. Qb3 {[%emt 0:00:53]} Qc7 {[%emt 0:00:07]} 7. h3 {[%emt 0:01:30]} Bd7 {[%emt 0:00:05]} 8. Nf3 {[%emt 0:00:21]} e6 {[%emt 0:00:08]} 9. O-O {[%emt 0:00:10]} Bd6 {[%emt 0:00:04]} 10. Re1 {[%emt 0:02:36]} Bc6 {[%emt 0:02:34]} 11. Ne5 {[%emt 0:08:15]} Nbd7 {[%emt 0:03:15]} 12. f4 {[%emt 0:00:35]} Ne4 {[%emt 0:04:36]} 13. Nd2 {[%emt 0:20:36]} f5 {[%emt 0:29:53]} 14. Ndf3 {[%emt 0:22:13]} O-O {[%emt 0:03:46]} 15. Be3 {[%emt 0:00:56]} Qb6 {[%emt 0:03:23]} 16. Qc2 {[%emt 0:02:05]} Ndf6 {[%emt 0:01:59]} 17. a4 {[%emt 0:00:46]} a5 {[%emt 0:00:21]} 18. Kh2 {[%emt 0:03:06]} Qd8 {[%emt 0:02:05]} 19. g3 {[%emt 0:06:06]} Qe8 {[%emt 0:01:58]} 20. Rg1 {[%emt 0:06:01]} Kh8 {[%emt 0:00:37]} 21. Rg2 {[%emt 0:06:07]} Rc8 {[%emt 0:02:25]} 22. Qd1 {[%emt 0:01:07]} Rc7 {[%emt 0:01:06]} 23. Bc2 {[%emt 0:03:13]} g6 {[%emt 0:00:31]} 24. g4 {[%emt 0:01:47]} fxg4 {[%emt 0:09:09]} 25. hxg4 {[%emt 0:00:03]} Rg7 {[%emt 0:00:15]} 26. Qe2 {[%emt 0:01:31]} g5 {[%emt 0:03:00]} 27. fxg5 {[%emt 0:01:19]} Nd7 {[%emt 0:00:08]} 28. Kg1 {[%emt 0:03:03]} Nxe5 {[%emt 0:04:19]} 29. dxe5 {[%emt 0:00:03]} Be7 {[%emt 0:00:08]} 30. Rh2 {[%emt 0:01:27]} Kg8 {[%emt 0:05:13]} 31. Rh3 {[%emt 0:07:22]} h5 {[%emt 0:09:07]} 32. gxh6 {[%emt 0:00:11]} Rxg4+ {[%emt 0:00:06]} 33. Kh2 {[%emt 0:00:02]} Kh8 {[%emt 0:01:41]} 34. Rg1 {[%emt 0:00:45]} Rxg1 {[%emt 0:01:05]} 35. Bxg1 {[%emt 0:00:10]} Ng5 {[%emt 0:03:56]} 36. Nxg5 Bxg5 {[%emt 0:00:03]} 37. Be3 {[%emt 0:02:04]} Bxe3 {[%emt 0:00:26]} 38. Qxe3 {[%emt 0:00:03]} Qf7 {[%emt 0:02:38]} 39. Bd3 {[%emt 0:00:05]} d4 {[%emt 0:00:55]} 40. Qg3 {[%emt 0:01:21]} dxc3 {[%emt 0:06:59]} 41. bxc3 {[%emt 0:01:06]} Rg8 {[%emt 0:12:39]} 1/2-1/2